{"text_format":"1","workbook":"xlsx","n_sheets":1,"sheets":["PF-ZUS"],"not_rendered":{"charts":0,"images":0,"macros":1,"external_links":0,"defined_names":0,"comments":0,"pivot_tables":0},"unopened":[],"bounds":{"document_bytes":16777216,"sheet_cells":100000,"rows_first":2000,"rows_last":500,"rows_between":2000,"halvings":0,"cell_chars":16384,"cell_head_chars":4096},"cells_cut":0,"cells_raw":0,"read":"whole","date_system":"1900"}

{"sheet":"PF-ZUS","index":0,"n_rows":179,"n_cols":12,"rows_kept":179,"cut":false,"hidden":false,"merged":[[169,3,169,4],[170,3,170,4],[171,3,171,4],[172,3,172,4],[164,3,164,4],[165,3,165,4],[166,3,166,4],[167,3,167,4],[168,3,168,4],[163,3,163,4],[100,3,100,4],[99,5,99,11],[162,5,162,11],[160,0,160,3],[102,3,102,4],[103,3,103,4],[104,3,104,4],[105,3,105,4],[101,3,101,4],[161,3,162,4],[161,0,162,0],[109,3,110,3],[109,4,110,4],[110,5,110,11],[109,0,110,0],[0,5,0,8],[14,4,14,8],[15,0,17,11],[21,5,21,11],[108,0,108,3],[20,0,21,0],[20,3,21,3],[20,4,21,4],[98,0,99,0],[98,3,99,4],[4,5,4,8],[20,1,21,1],[20,2,21,2],[109,1,110,1],[109,2,110,2],[98,1,99,1],[98,2,99,2],[161,1,162,1],[161,2,162,2]]}
[]
[null,null,null,null,null,null,null,null,null,null,null,"Załącznik nr 33"]
[]
[null,null,null,null,null,null,null,null,null,null,null,"PF-ZUS"]
[]
["Część",null,null,"…….",{"$f":"IF(D6=\"\",\"<- Proszę uzupełnić dane dot. częśći budżetowej\",\"\")","v":""}]
[null,null,null,"(nr, nazwa)"]
["Dział",null,null,"…….",{"$f":"IF(D8=\"\",\"<- Proszę uzupełnić dane dot. działu\",\"\")","v":""}]
[null,null,null,"(nr, nazwa)"]
["Rozdział",null,null,"…….",{"$f":"IF(D10=\"\",\"<- Proszę uzupełnić dane dot. rozdziału\",\"\")","v":""}]
[null,null,null,"(nr, nazwa)"]
["Jednostka",null,null,"……."]
[null,null,null,"(nazwa Jednostki)"]
[]
[]
["\nPROJEKT PLANU FINANSOWEGO ZAKŁADU UBEZPIECZEŃ SPOŁECZNYCH"]
[]
[]
[]
["Część A. Plan finansowy w układzie memoriałowym"]
["Lp.","CHAPTER_CODE","UATTRIBUTE01","Wyszczególnienie","Paragraf 1)","Wstępne wykonanie / wykonanie *) \nw ……... r.\n(rok N-1)","Ustawa budżetowa na ………. r. **)\n(rok N)","Przewidywane wykonanie w ………. r.\n(rok N)","Projekt planu na ………. r.\n(rok N+1)","Projekt planu na ………. r.\n(rok N+2)","Projekt planu na ………. r.\n(rok N+3)","Projekt planu na ………. r.\n(rok N+4)"]
[null,null,null,null,null,"w tysiącach złotych"]
[1,null,null,2,3,4,5,6,7,8,9,10]
["I","PFZUS.A1_1","PFZUS.A1_1.I","STAN NA POCZĄTEK ROKU","x","x","x","x","x","x","x","x"]
[1,"PFZUS.A1_1","PFZUS.A1_1.I.1","Środki pieniężne","x"]
[2,"PFZUS.A1_1","PFZUS.A1_1.I.2","Inne aktywa finansowe 2)","x"]
[3,"PFZUS.A1_1","PFZUS.A1_1.I.3","Należności","x"]
[4,"PFZUS.A1_1","PFZUS.A1_1.I.4","Zapasy","x"]
[5,"PFZUS.A1_1","PFZUS.A1_1.I.5","Zobowiązania, w tym: ","x"]
["5.1","PFZUS.A1_1","PFZUS.A1_1.I.5.1","   - z tytułu odsetek za nieprzekazane składki do otwartych funduszy emerytalnych","x"]
["II","PFZUS.A1_1","PFZUS.A1_1.II","PRZYCHODY OGÓŁEM","x",{"$f":"SUM(F32,F33,F34,F38,F44,F46)","v":0},{"$f":"SUM(G32,G33,G34,G38,G44,G46)","v":0},0,0,0,0,0]
[1,"PFZUS.A1_1","PFZUS.A1_1.II.1"," Odpis z Funduszu Ubezpieczeń Społecznych","297"]
[2,"PFZUS.A1_1","PFZUS.A1_1.II.2"," Odpis z Funduszu Emerytur Pomostowych","297"]
[3,"PFZUS.A1_1","PFZUS.A1_1.II.3"," Przychody z tytułu poboru i dochodzenia składek innych niż na FUS z tego:","x",{"$f":"SUM(F35,F36,F37)","v":0},{"$f":"SUM(G35,G36,G37)","v":0},0,0,0,0,0]
["3.1","PFZUS.A1_1","PFZUS.A1_1.II.3.1","   - przychody z tytułu poboru i dochodzenia składek na otwarte fundusze emerytalne","x"]
["3.2","PFZUS.A1_1","PFZUS.A1_1.II.3.2","   - przychody z tytułu poboru i dochodzenia składek na Fundusz Pracy, Fundusz Solidarnościowy  i Fundusz Gwarantowanych Świadczeń Pracowniczych","x"]
["3.3","PFZUS.A1_1","PFZUS.A1_1.II.3.3","   - przychody z tytułu poboru i dochodzenia składek na ubezpieczenie zdrowotne","x"]
[4,"PFZUS.A1_1","PFZUS.A1_1.II.4"," Przychody z tytułu zwrotu kosztów obsługi świadczeń zleconych Zakładowi do wypłaty:","x",{"$f":"SUM(F39,F40,F41,F42,F43)","v":0},{"$f":"SUM(G39,G40,G41,G42,G43)","v":0},0,0,0,0,0]
["4.1","PFZUS.A1_1","PFZUS.A1_1.II.4.1","   - rent socjalnych","x"]
["4.2","PFZUS.A1_1","PFZUS.A1_1.II.4.2","   - zasiłków i świadczeń przedemerytalnych","x"]
["4.3","PFZUS.A1_1","PFZUS.A1_1.II.4.3","   - świadczeń na rzecz kombatantów","x"]
["4.4","PFZUS.A1_1","PFZUS.A1_1.II.4.4","   - świadczeń zbiegowych realizowanych przez KRUS","x"]
["4.5","PFZUS.A1_1","PFZUS.A1_1.II.4.5","   - obsługa pozostałych świadczeń ","x"]
[5,"PFZUS.A1_1","PFZUS.A1_1.II.5"," Przychody finansowe","x"]
["5.1","PFZUS.A1_1","PFZUS.A1_1.II.5.1","   - odsetki","x"]
[6,"PFZUS.A1_1","PFZUS.A1_1.II.6"," Pozostałe przychody","x"]
["III","PFZUS.A1_1","PFZUS.A1_1.III","KOSZTY OGÓŁEM","x",{"$f":"SUM(F48,F71,F74)","v":0},0,0,0,0,0,0]
[1,"PFZUS.A1_1","PFZUS.A1_1.III.1","Koszty według rodzaju ","x",{"$f":"SUM(F49,F51,F52,F57,F61,F64,F70)","v":0},0,0,0,0,0,0]
["1.1","PFZUS.A1_1","PFZUS.A1_1.III.1.1","amortyzacja, w tym:","472"]
[null,"PFZUS.A1_1","PFZUS.A1_1.III.1.1.1","  - zakup wyposażenia o niskiej wartości"]
["1.2","PFZUS.A1_1","PFZUS.A1_1.III.1.2","materiały i energia","400"]
["1.3","PFZUS.A1_1","PFZUS.A1_1.III.1.3","usługi obce","x",{"$f":"SUM(F53:F56)","v":0},{"$f":"SUM(G53:G56)","v":0},0,0,0,0,0]
["1.3.1","PFZUS.A1_1","PFZUS.A1_1.III.1.3.1","  - usługi pocztowe i bankowe","400"]
["1.3.2","PFZUS.A1_1","PFZUS.A1_1.III.1.3.2","  - usługi telekomunikacyjne","x"]
["1.3.3","PFZUS.A1_1","PFZUS.A1_1.III.1.3.3","  - usługi związane z przetwarzaniem danych","x"]
["1.3.4","PFZUS.A1_1","PFZUS.A1_1.III.1.3.4","  - pozostałe","x"]
["1.4","PFZUS.A1_1","PFZUS.A1_1.III.1.4","podatki i opłaty, w tym:","x"]
["1.4.1","PFZUS.A1_1","PFZUS.A1_1.III.1.4.1","  - podatki stanowiące źródło dochodów własnych jednostek samorządu terytorialnego"]
["1.4.2","PFZUS.A1_1","PFZUS.A1_1.III.1.4.2","  - opłaty za wieczyste użytkowanie gruntów","x"]
["1.4.3","PFZUS.A1_1","PFZUS.A1_1.III.1.4.3","  - opłaty urzędowe","x"]
["1.5","PFZUS.A1_1","PFZUS.A1_1.III.1.5","wynagrodzenia","401-410, 417",{"$f":"SUM(F62:F63)","v":0},{"$f":"SUM(G62:G63)","v":0},0,0,0,0,0]
["1.5.1","PFZUS.A1_1","PFZUS.A1_1.III.1.5.1","  - osobowe","401"]
["1.5.2","PFZUS.A1_1","PFZUS.A1_1.III.1.5.2","  - pozostałe","x"]
["1.6","PFZUS.A1_1","PFZUS.A1_1.III.1.6","ubezpieczenia społeczne i inne świadczenia","x",{"$f":"SUM(F65:F69)","v":0},{"$f":"SUM(G65:G69)","v":0},0,0,0,0,0]
["1.6.1","PFZUS.A1_1","PFZUS.A1_1.III.1.6.1","  - składki na ubezpieczenie społeczne","411"]
["1.6.2","PFZUS.A1_1","PFZUS.A1_1.III.1.6.2","  - składki na Fundusz Pracy oraz Fundusz Solidarnościowy","412"]
["1.6.3","PFZUS.A1_1","PFZUS.A1_1.III.1.6.3","  - świadczenia socjalne"]
["1.6.4","PFZUS.A1_1","PFZUS.A1_1.III.1.6.4","  - składki na Fundusz Emerytur Pomostowych","478"]
["1.6.5","PFZUS.A1_1","PFZUS.A1_1.III.1.6.5","  - inne***)","x"]
["1.7","PFZUS.A1_1","PFZUS.A1_1.III.1.7","pozostałe","x"]
[2,"PFZUS.A1_1","PFZUS.A1_1.III.2","Koszty finansowe","x",{"$f":"SUM(F72:F73)","v":0},{"$f":"SUM(G72:G73)","v":0},0,0,0,0,0]
["2.1","PFZUS.A1_1","PFZUS.A1_1.III.2.1","  - obsługa długu","x"]
["2.2","PFZUS.A1_1","PFZUS.A1_1.III.2.2","  - inne","x"]
[3,"PFZUS.A1_1","PFZUS.A1_1.III.3","Pozostałe koszty","x"]
["IV",null,null,"WYNIK ZDARZEŃ NADZWYCZAJNYCH"]
[1,null,null,"  - zyski nadzwyczajne"]
[2,null,null,"  - straty nadzwyczajne"]
["IV","PFZUS.A1_1","PFZUS.A1_1.IV","WYNIK BRUTTO (poz. II - III) 3)","x",{"$f":"(F31-F47)","v":0},0,0,0,0,0,0]
["V","PFZUS.A1_1","PFZUS.A1_1.V","OBOWIĄZKOWE OBCIĄŻENIA WYNIKU FINANSOWEGO","x"]
["VI","PFZUS.A1_1","PFZUS.A1_1.VI","WYNIK NETTO ( IV - V) 3)","x",{"$f":"(F78-F79)","v":0},{"$f":"(G78-G79)","v":0},0,0,0,0,0]
["VII","PFZUS.A1_1","PFZUS.A1_1.VII","Nakłady na budowę, ulepszenie i zakup środków trwałych oraz wartości niematerialnych i prawnych","x"]
["VIII","PFZUS.A1_1","PFZUS.A1_1.VIII","STAN NA KONIEC ROKU:","x","x","x","x","x","x","x","x"]
[1,"PFZUS.A1_1","PFZUS.A1_1.VIII.1","Środki pieniężne","x"]
[2,"PFZUS.A1_1","PFZUS.A1_1.VIII.2","Inne aktywa finansowe 2)","x"]
[3,"PFZUS.A1_1","PFZUS.A1_1.VIII.3","Należności","x"]
[4,"PFZUS.A1_1","PFZUS.A1_1.VIII.4","Zapasy","x"]
[5,"PFZUS.A1_1","PFZUS.A1_1.VIII.5","Zobowiązania, w tym: ","x"]
["5.1","PFZUS.A1_1","PFZUS.A1_1.VIII.5.1","    - z tytułu odsetek za nieprzekazane składki do otwartych funduszy emerytalnych","x"]
[]
["*) Niepotrzebne skreslić."]
["**) W przypadku dokonania zmian w planie finansowym Zakładu Ubezpieczeń Społecznych na rok N zatwierdzonych uchwałą Rady Nadzorczej ZUS należy zaprezentować plan po zmianach."]
["***) W tej pozycji od 2021 roku należy ująć również wpłaty na pracownicze plany kapitałowe."]
["1) Klasyfikacja paragrafów wydatków jest czterocyfrowa; czwartą cyfrą jest odpowiednia cyfra od 1 do 9 lub cyfra 0,"]
["   przychody należy ujmować stosując czwarte cyfry właściwe dla klasyfikacji dochodów."]
["2) Należy podać wartość innych niż środki pieniężne w kasie i na rachunkach bankowych aktywa finansowe (np.: papiery wartościowe)."]
["3) Dodatni wynik należy oznaczyć znakiem \"+\", a ujemny wynik znakiem \"-\"."]
[]
["Część B. Dane uzupełniające"]
["Lp.","CHAPTER_CODE","UATTRIBUTE01","Wyszczególnienie",null,"Stan na dzień \n31 grudnia \nroku ……\n(N-1)","Ustawa budżetowa na ………. r.\n(rok N)","Przewidywane wykonanie w ………. r.\n(rok N)","Projekt planu na ………. r.\n(rok N+1)","Projekt planu na ………. r.\n(rok N+2)","Projekt planu na ………. r.\n(rok N+3)","Projekt planu na ………. r.\n(rok N+4)"]
[null,null,null,null,null,"w tysiącach złotych"]
[1,null,null,"2",null,"3","4","5","6","7","8","9"]
[null,"PFZUS.B1_1","PFZUS.B1_1.0","ZOBOWIĄZANIA "]
[1,"PFZUS.B1_1","PFZUS.B1_1.1","Inne, w tym:"]
["1.1","PFZUS.B1_1","PFZUS.B1_1.1.1","wymagalne"]
["1.2","PFZUS.B1_1","PFZUS.B1_1.1.2","z tytułu odsetek za nieprzekazane składki do otwartych funduszy emerytalnych"]
[null,"PFZUS.B1_1","PFZUS.B1_1.1.3","LICZBA ZATRUDNIONYCH\n(w przeliczeniu na pełne etaty)"]
[]
[]
["Część C. Dane w układzie kasowym"]
["Lp.","CHAPTER_CODE","UATTRIBUTE01","Wyszczególnienie","Paragraf 1)","Wstępne wykonanie / wykonanie *) w……... r.\n(rok N-1)","Ustawa budżetowa na ………. r.\n(rok N)","Przewidywane wykonanie w ………. r.\n(rok N)","Projekt planu na ………. r.\n(rok N+1)","Projekt planu na ………. r.\n(rok N+2)","Projekt planu na ………. r.\n(rok N+3)","Projekt planu na ………. r.\n(rok N+4)"]
[null,null,null,null,null,"w tysiącach złotych"]
[1,null,null,2,3,4,5,6,7,8,9,10]
["I","PFZUS.C1_1","PFZUS.C1_1.I","STAN ŚRODKÓW PIENIĘZNYCH NA POCZĄTEK ROKU:"]
["II","PFZUS.C1_1","PFZUS.C1_1.II","DOCHODY","x",{"$f":"SUM(F115,F116,F117,F121,F127,F129)","v":0},{"$f":"SUM(G115,G116,G117,G121,G127,G129)","v":0},0,0,0,0,0]
[1,"PFZUS.C1_1","PFZUS.C1_1.II.1"," Odpis z Funduszu Ubezpieczeń Społecznych","297"]
[2,"PFZUS.C1_1","PFZUS.C1_1.II.2"," Odpis z Funduszu Emerytur Pomostowych","297"]
[3,"PFZUS.C1_1","PFZUS.C1_1.II.3"," Dochody z tytułu poboru i dochodzenia składek innych niż na FUS z tego:","x",{"$f":"SUM(F118,F119,F120)","v":0},{"$f":"SUM(G118,G119,G120)","v":0},0,0,0,0,0]
["3.1","PFZUS.C1_1","PFZUS.C1_1.II.3.1","   - dochody z tytułu poboru i dochodzenia składek na otwarte fundusze emerytalne","x"]
["3.2","PFZUS.C1_1","PFZUS.C1_1.II.3.2","   - dochody z tytułu poboru i dochodzenia składek na Fundusz Pracy, Fundusz Solidarnościowy i Fundusz Gwarantowanych Świadczeń Pracowniczych","x"]
["3.3","PFZUS.C1_1","PFZUS.C1_1.II.3.3","   - dochody z tytułu poboru i dochodzenia składek na ubezpieczenie zdrowotne","x"]
[4,"PFZUS.C1_1","PFZUS.C1_1.II.4"," Dochody z tytułu zwrotu kosztów obsługi świadczeń zleconych Zakładowi do wypłaty:","x",{"$f":"SUM(F122,F123,F124,F125,F126)","v":0},{"$f":"SUM(G122,G123,G124,G125,G126)","v":0},0,0,0,0,0]
["4.1","PFZUS.C1_1","PFZUS.C1_1.II.4.1","   - rent socjalnych","x"]
["4.2","PFZUS.C1_1","PFZUS.C1_1.II.4.2","   - zasiłków i świadczeń przedemerytalnych","x"]
["4.3","PFZUS.C1_1","PFZUS.C1_1.II.4.3","   - świadczeń na rzecz kombatantów","x"]
["4.4","PFZUS.C1_1","PFZUS.C1_1.II.4.4","   - świadczeń zbiegowych realizowanych przez KRUS","x"]
["4.5","PFZUS.C1_1","PFZUS.C1_1.II.4.5","   - obsługa pozostałych świadczeń ","x"]
[5,"PFZUS.C1_1","PFZUS.C1_1.II.5"," Dochody finansowe","x"]
["5.1","PFZUS.C1_1","PFZUS.C1_1.II.5.1","   - odsetki","x"]
[6,"PFZUS.C1_1","PFZUS.C1_1.II.6"," Pozostałe dochody","x"]
["III","PFZUS.C1_1","PFZUS.C1_1.III","WYDATKI","x",{"$f":"SUM(F131,F132,F133,F138,F142,F145,F151,F152,F155,F156)","v":0},{"$f":"SUM(G131,G132,G133,G138,G142,G145,G151,G152,G155,G156)","v":0},0,0,0,0,0]
[1,"PFZUS.C1_1","PFZUS.C1_1.III.1","Zakup wyposażenia o niskiej wartości","400"]
[2,"PFZUS.C1_1","PFZUS.C1_1.III.2","Materiały i energia","400"]
["2.1","PFZUS.C1_1","PFZUS.C1_1.III.2.1","usługi obce","x",{"$f":"SUM(F134,F135,F136,F137)","v":0},{"$f":"SUM(G134,G135,G136,G137)","v":0},0,0,0,0,0]
["2.1.1","PFZUS.C1_1","PFZUS.C1_1.III.2.1.1","  - usługi pocztowe i bankowe","400"]
["2.1.2","PFZUS.C1_1","PFZUS.C1_1.III.2.1.2","  - usługi telekomunikacyjne","x"]
["2.1.3","PFZUS.C1_1","PFZUS.C1_1.III.2.1.3","  - usługi związane z przetwarzaniem danych","x"]
["2.1.4","PFZUS.C1_1","PFZUS.C1_1.III.2.1.4","  - pozostałe","x"]
["2.2","PFZUS.C1_1","PFZUS.C1_1.III.2.2","podatki i opłaty, w tym:","x"]
["2.2.1","PFZUS.C1_1","PFZUS.C1_1.III.2.2.1","  - podatki stanowiące źródło dochodów własnych  jednostek samorządu terytorialnego","x"]
["2.2.2","PFZUS.C1_1","PFZUS.C1_1.III.2.2.2","  - opłaty za wieczyste użytkowanie gruntów","x"]
["2.2.3","PFZUS.C1_1","PFZUS.C1_1.III.2.2.3","  - opłaty urzędowe","x"]
["2.3","PFZUS.C1_1","PFZUS.C1_1.III.2.3","wynagrodzenia","401-410, 417",{"$f":"SUM(F143,F144)","v":0},{"$f":"SUM(G143,G144)","v":0},0,0,0,0,0]
["2.3.1","PFZUS.C1_1","PFZUS.C1_1.III.2.3.1","  - osobowe","401"]
["2.3.2","PFZUS.C1_1","PFZUS.C1_1.III.2.3.2","  - pozostałe","x"]
["2.4","PFZUS.C1_1","PFZUS.C1_1.III.2.4","ubezpieczenia społeczne i inne świadczenia","x",{"$f":"SUM(F146,F147,F148,F149,F150)","v":0},{"$f":"SUM(G146,G147,G148,G149,G150)","v":0},0,0,0,0,0]
["2.4.1","PFZUS.C1_1","PFZUS.C1_1.III.2.4.1","  - składki na ubezpieczenie społeczne","411"]
["2.4.2","PFZUS.C1_1","PFZUS.C1_1.III.2.4.2","  - składki na Fundusz Pracy oraz Fundusz Solidarnościowy","412"]
["2.4.3","PFZUS.C1_1","PFZUS.C1_1.III.2.4.3","  - świadczenia socjalne"]
["2.4.4","PFZUS.C1_1","PFZUS.C1_1.III.2.4.4","  - składki na Fundusz Emerytur Pomostowych","478"]
["2.4.5","PFZUS.C1_1","PFZUS.C1_1.III.2.4.5","  - inne***)","x"]
["2.5","PFZUS.C1_1","PFZUS.C1_1.III.2.5","pozostałe","x"]
[3,"PFZUS.C1_1","PFZUS.C1_1.III.3","Wydatki finansowe","x",{"$f":"SUM(F153:F154)","v":0},{"$f":"SUM(G153:G154)","v":0},0,0,0,0,0]
["3.1","PFZUS.C1_1","PFZUS.C1_1.III.3.1","  - obsługa długu","x"]
["3.2","PFZUS.C1_1","PFZUS.C1_1.III.3.2","  - inne","x"]
[4,"PFZUS.C1_1","PFZUS.C1_1.III.4","Pozostałe wydatki","x"]
[5,"PFZUS.C1_1","PFZUS.C1_1.III.5","Wydatki majątkowe","x"]
["IV","PFZUS.C1_1","PFZUS.C1_1.IV","WYNIK  (II-III)","x",{"$f":"(F114-F130)","v":0},{"$f":"(G114-G130)","v":0},0,0,0,0,0]
["V","PFZUS.C1_1","PFZUS.C1_1.V","STAN ŚRODKÓW PIENIĘŻNYCH NA KONIEC ROKU","x"]
[]
[]
["Część D. Dane uzupełniające"]
["Lp.","CHAPTER_CODE","UATTRIBUTE01","Wyszczególnienie",null,"Stan na dzień \n31 grudnia \nroku ……\n(N-1)","Ustawa budżetowa na ………. r.\n(rok N)","Przewidywane wykonanie w ………. r.\n(rok N)","Projekt planu na ………. r.\n(rok N+1)","Projekt planu na ………. r.\n(rok N+2)","Projekt planu na ………. r.\n(rok N+3)","Projekt planu na ………. r.\n(rok N+4)"]
[null,null,null,null,null,"w tysiącach złotych"]
[1,null,null,"2",null,"3","4","5","6","7","8","9"]
[null,"PFZUS.D1_1","PFZUS.D1_1.0","ZOBOWIĄZANIA \nwedług wartości nominalnej"]
[1,"PFZUS.D1_1","PFZUS.D1_1.1","Papiery wartościowe"]
[2,"PFZUS.D1_1","PFZUS.D1_1.2","Kredyty i pożyczki, w tym zaciągnięte od:"]
[null,"PFZUS.D1_1","PFZUS.D1_1.2.1","    - wobec sektora finansów publicznych"]
[null,"PFZUS.D1_1","PFZUS.D1_1.2.2","    - wobec pozostałych"]
[3,"PFZUS.D1_1","PFZUS.D1_1.3","Depozyty"]
[4,"PFZUS.D1_1","PFZUS.D1_1.4","Inne w tym:"]
["4.1","PFZUS.D1_1","PFZUS.D1_1.4.1","zobowiązania wymagalne"]
["4.2","PFZUS.D1_1","PFZUS.D1_1.4.2","z tytułu odsetek za nieprzekazane składki do otwartych funduszy emerytalnych"]
[]
[]
["sporządził ....................................................................."]
["                         (imię i nazwisko, stanowisko służbowe)"]
["nr telefonu .........................     adres e-mail ........................................"]
["data .........................   podpis ................................ "]